bitfinex-derivatives/quotes_BTCF0:USTF0_20250509
["timestamp","ask_amount","ask_price","bid_price","bid_amount"]
[1746829381267,0.50227,103030.0,103020.0,2.54953748]
[1746829382574,0.50227,103030.0,103020.0,2.57963748]
[1746829385779,0.50227,103030.0,103020.0,2.50836018]
[1746829385971,0.50227,103030.0,103020.0,2.57963748]
[1746829386678,0.50227,103030.0,103020.0,2.57963887]
[1746829387575,0.50227,103030.0,103020.0,2.50836157]
[1746829387774,0.50227,103030.0,103020.0,2.57963887]
[1746829388283,0.50227,103030.0,103020.0,2.57963937]
[1746829388581,0.50227,103030.0,103020.0,2.65091667]
[1746829389070,0.0742457,103040.0,103030.0,0.1941085]
[1746829389270,0.0742457,103040.0,103030.0,1.14466402]
[1746829389676,0.0742457,103040.0,103030.0,1.24172783]
[1746829390382,0.2352457,103040.0,103030.0,1.24172783]
[1746829390579,0.09896006,103050.0,103040.0,0.1940896]
[1746829390784,0.09896006,103050.0,103040.0,1.37068512]
[1746829391271,0.25896006,103050.0,103040.0,1.46773951]
[1746829391682,0.25996006,103050.0,103040.0,1.46773951]
[1746829392478,0.26096006,103050.0,103040.0,1.46773951]
[1746829395471,0.26096006,103050.0,103040.0,1.32518491]
[1746829395677,0.352,103050.0,103040.0,1.06646221]
[1746829395980,0.414,103050.0,103040.0,0.85358491]
[1746829396277,0.414,103050.0,103040.0,0.97490491]
[1746829396483,0.414,103050.0,103040.0,1.04618221]
[1746829397182,0.414,103050.0,103040.0,1.0461355]
[1746829398787,0.224,103050.0,103040.0,1.4161355]
[1746829399084,0.224,103050.0,103040.0,1.4874128]
[1746829400584,0.224,103050.0,103040.0,1.4161355]
[1746829400883,0.224,103050.0,103040.0,1.41613028]
[1746829402283,0.224,103050.0,103040.0,1.77693028]
[1746829402586,0.224,103050.0,103040.0,1.77692959]
[1746829403494,0.224,103050.0,103040.0,1.84820689]
[1746829404487,0.224,103050.0,103040.0,1.77692995]
[1746829405683,0.224,103050.0,103040.0,1.84820725]
[1746829405879,0.224,103050.0,103040.0,1.85820725]
[1746829406490,0.224,103050.0,103040.0,1.78692995]
[1746829407988,0.224,103050.0,103040.0,1.78687755]
[1746829408687,0.224,103050.0,103040.0,1.81937755]
[1746829410590,0.224,103050.0,103040.0,1.89065485]
[1746829410890,0.224,103050.0,103040.0,1.51065485]
[1746829411083,0.224,103050.0,103040.0,1.84065485]
[1746829411588,0.224,103050.0,103040.0,1.84065577]
[1746829412192,0.2569,103050.0,103040.0,1.84065577]
[1746829414592,0.2569,103050.0,103040.0,1.82065577]
[1746829415191,0.2569,103050.0,103040.0,1.74937847]
[1746829415390,0.2569,103050.0,103040.0,1.82065577]
[1746829415590,0.2569,103050.0,103040.0,1.74937847]
[1746829416892,0.2569,103050.0,103040.0,1.74939523]
[1746829418094,0.2569,103050.0,103040.0,1.02779523]
[1746829418294,0.2569,103050.0,103040.0,1.74939523]
[1746829418793,0.2569,103050.0,103040.0,1.82067253]
[1746829419194,0.2569,103050.0,103040.0,1.57791253]
[1746829419493,0.2569,103050.0,103040.0,1.81823253]
[1746829421293,0.2569,103050.0,103040.0,1.81807253]
[1746829422495,0.2569,103050.0,103040.0,1.81809616]
[1746829422686,0.2569,103050.0,103040.0,1.81801616]
[1746829424095,0.2569,103050.0,103040.0,1.81801698]
[1746829424297,0.2569,103050.0,103040.0,1.09641698]
[1746829424594,0.2569,103050.0,103040.0,1.81801698]
[1746829425990,0.2569,103050.0,103040.0,1.81802013]
[1746829426496,0.2569,103050.0,103040.0,1.74674304]
[1746829428188,0.2569,103050.0,103040.0,1.02514304]
[1746829428389,0.2569,103050.0,103040.0,1.74674304]
[1746829428591,0.26417,103050.0,103040.0,1.74646304]
[1746829430500,0.26417,103050.0,103040.0,1.50666304]
[1746829430799,0.26417,103050.0,103040.0,1.74638304]
[1746829433092,0.26417,103050.0,103040.0,1.74638309]
[1746829433598,0.26417,103050.0,103040.0,1.81766039]
[1746829434899,0.26417,103050.0,103040.0,1.81766051]
[1746829438499,0.26417,103050.0,103040.0,1.81766066]
[1746829439096,0.26417,103050.0,103040.0,1.74638336]
[1746829441505,0.26417,103050.0,103040.0,1.7463823]
[1746829442003,0.26417,103050.0,103040.0,1.8176596]
[1746829443304,0.23127,103050.0,103040.0,1.8176596]
[1746829447107,0.23127,103050.0,103040.0,1.81766043]
[1746829447807,0.23127,103050.0,103040.0,1.74638313]
[1746829449310,0.23127,103050.0,103040.0,1.02478313]
[1746829449605,0.23127,103050.0,103040.0,1.74638313]
[1746829452211,0.23127,103050.0,103040.0,1.74638043]
[1746829454005,0.23127,103050.0,103040.0,1.74638023]
[1746829454713,0.45127,103050.0,103040.0,1.74638023]
[1746829461322,0.45127,103050.0,103040.0,1.43638023]
[1746829461522,0.45127,103050.0,103040.0,1.84765753]
[1746829462529,0.45127,103050.0,103040.0,1.77638023]
[1746829464025,0.45127,103050.0,103040.0,1.70510293]
[1746829464321,0.45127,103050.0,103040.0,1.77638023]
[1746829466518,0.45127,103050.0,103040.0,1.05478035]
[1746829466724,0.45127,103050.0,103040.0,1.77638035]
[1746829468022,0.45127,103050.0,103040.0,1.43638035]
[1746829468223,0.45127,103050.0,103040.0,1.79638035]
[1746829468520,0.45127,103050.0,103040.0,1.86765772]
[1746829469526,0.45127,103050.0,103040.0,1.79638042]
[1746829470325,0.45127,103050.0,103040.0,1.75638042]
[1746829474529,0.45127,103050.0,103040.0,1.82765772]
[1746829475227,0.45127,103050.0,103040.0,1.75638042]
[1746829478330,0.45127,103050.0,103040.0,1.43638042]
[1746829478523,0.45127,103050.0,103040.0,1.78638042]
[1746829479029,0.45127,103050.0,103040.0,1.77164129]
[1746829479228,0.45127,103050.0,103040.0,1.43638099]
[1746829479428,0.48427,103050.0,103040.0,1.79638099]
[1746829479629,0.48427,103050.0,103040.0,1.43638099]
[1746829479926,0.48427,103050.0,103040.0,1.77638099]
[1746829482128,0.48427,103050.0,103040.0,1.80638099]
[1746829483932,0.7496181,103050.0,103040.0,1.05988369]
[1746829484126,0.48427,103050.0,103040.0,1.29648369]
[1746829485531,0.48427,103050.0,103040.0,1.36776099]
[1746829486431,0.48427,103050.0,103040.0,1.39836099]
[1746829491635,0.48427,103050.0,103040.0,1.3983434]
[1746829491837,0.48427,103050.0,103040.0,1.38362129]
[1746829494334,1.2787394,103050.0,103040.0,0.11177684]
[1746829494540,1.5287394,103050.0,103040.0,0.11177684]
[1746829494835,0.1941085,103030.0,103020.0,0.93349173]
[1746829495035,0.5953858,103030.0,103020.0,0.98202333]
[1746829495230,0.8164858,103030.0,103020.0,1.11126831]
[1746829495541,0.8164858,103030.0,103020.0,1.12599184]
[1746829495738,0.8164858,103030.0,103020.0,1.11126831]
[1746829495939,0.8164858,103030.0,103020.0,1.12599173]
[1746829498234,0.8164858,103030.0,103020.0,0.97752451]
[1746829498235,0.8465858,103030.0,103020.0,0.97752451]
[1746829498435,0.8538558,103030.0,103020.0,0.97752451]
[1746829499440,0.8538558,103030.0,103020.0,0.97750221]
[1746829499738,0.8538558,103030.0,103020.0,0.9775022]
[1746829500039,0.8538558,103030.0,103020.0,0.831914]
[1746829500938,0.8538558,103030.0,103020.0,0.83191819]
[1746829503341,0.8538558,103030.0,103020.0,0.63779089]
[1746829503533,0.8538558,103030.0,103020.0,0.83191819]
[1746829503731,0.8538558,103030.0,103020.0,0.86441819]
[1746829504039,0.8538558,103030.0,103020.0,0.50361819]
[1746829504228,0.8538558,103030.0,103020.0,0.86441819]
[1746829505940,0.8538558,103030.0,103020.0,0.86440947]
[1746829506141,0.8538558,103030.0,103020.0,0.86440949]
[1746829506832,0.8558558,103030.0,103020.0,0.86440949]
[1746829507243,0.8578558,103030.0,103020.0,0.86440949]
[1746829508038,0.8578558,103030.0,103020.0,0.55196219]
[1746829508240,1.3849971,103030.0,103020.0,0.12646219]
[1746829508536,1.5053171,103030.0,103020.0,0.11176559]
[1746829511541,1.4340398,103030.0,103020.0,0.11176559]
[1746829512843,1.53299986,103030.0,103020.0,0.11176559]
[1746829513143,1.60427716,103030.0,103020.0,0.11176559]
[1746829513641,1.60527716,103030.0,103020.0,0.11176559]
[1746829514031,1.46272256,103030.0,103020.0,0.11176559]
[1746829514230,1.53399986,103030.0,103020.0,0.11176559]
[1746829514435,0.92871586,103030.0,103020.0,0.69949289]
[1746829514634,0.85743856,103030.0,103020.0,0.83397019]
[1746829514834,0.85743856,103030.0,103020.0,0.96692338]
[1746829514835,0.82643856,103030.0,103020.0,0.96692338]
[1746829515034,0.82343856,103030.0,103020.0,0.89564382]
[1746829515243,0.82543856,103030.0,103020.0,0.89564382]
[1746829515637,0.82343856,103030.0,103020.0,0.89564382]
[1746829515849,0.79333856,103030.0,103020.0,0.96692112]
[1746829516143,0.79333856,103030.0,103020.0,0.89564382]
[1746829516342,0.3743785,103030.0,103020.0,0.89664382]
[1746829516736,0.3743785,103030.0,103020.0,0.89664809]
[1746829517142,0.5643785,103030.0,103020.0,0.89664809]
[1746829517443,0.5613785,103030.0,103020.0,0.89764809]
[1746829519545,0.6326558,103030.0,103020.0,0.89764809]
[1746829522949,0.6326558,103030.0,103020.0,0.53684809]
[1746829523150,0.6326558,103030.0,103020.0,0.89764809]
[1746829525948,0.5613785,103030.0,103020.0,0.89764809]
[1746829526250,0.5613785,103030.0,103020.0,1.08720539]
[1746829527250,0.63526926,103030.0,103020.0,1.08720539]
[1746829527550,0.63526926,103030.0,103020.0,1.08724163]
[1746829527747,0.63526926,103030.0,103020.0,1.07257019]
[1746829528651,0.63526926,103030.0,103020.0,1.0872407]
[1746829530051,0.43526926,103030.0,103020.0,1.0872407]
[1746829533359,0.43526926,103030.0,103020.0,1.08724107]
[1746829535258,0.43526926,103030.0,103020.0,1.01596377]
[1746829535552,0.80654656,103030.0,103020.0,1.01592377]
[1746829535753,0.83914656,103030.0,103020.0,1.01592377]
[1746829536558,0.76786926,103030.0,103020.0,1.01592377]
[1746829536957,0.76786926,103030.0,103020.0,1.0159234]
[1746829537359,0.76786926,103030.0,103020.0,0.7793634]
[1746829537558,0.76786926,103030.0,103020.0,1.0158434]
[1746829538559,0.76786926,103030.0,103020.0,1.0871207]
[1746829538759,0.76786926,103030.0,103020.0,1.08712089]
[1746829540558,0.76786926,103030.0,103020.0,1.08712756]
[1746829541863,0.76786926,103030.0,103020.0,1.07245019]
[1746829542055,0.76786926,103030.0,103020.0,1.00117289]
[1746829542563,0.80096926,103030.0,103020.0,1.00117289]
[1746829543061,0.80196926,103030.0,103020.0,1.00017289]
[1746829543363,0.80196926,103030.0,103020.0,0.99917289]
[1746829543572,0.80296926,103030.0,103020.0,0.99917289]
[1746829545853,0.80296926,103030.0,103020.0,1.01415564]
[1746829547868,0.80296926,103030.0,103020.0,1.01417108]
[1746829548666,0.82803856,103030.0,103020.0,1.01417108]
[1746829551271,0.82803856,103030.0,103020.0,1.01417132]
[1746829551968,0.82803856,103030.0,103020.0,1.01413132]
[1746829553064,0.82803856,103030.0,103020.0,1.01413153]
[1746829553871,0.82703856,103030.0,103020.0,1.01513153]
[1746829554875,0.82603856,103030.0,103020.0,1.01513153]
[1746829555073,0.82603856,103030.0,103020.0,1.01613153]
[1746829556073,0.82603856,103030.0,103020.0,1.48868613]
[1746829556074,0.26623006,103030.0,103020.0,1.48868613]
[1746829556276,0.10623006,103030.0,103020.0,1.48868613]
[1746829556469,0.12361312,103040.0,103030.0,0.1941085]
[1746829556775,0.12361312,103040.0,103030.0,1.08668444]
[1746829557069,0.12361312,103040.0,103030.0,1.21414084]
[1746829557269,0.38898002,103040.0,103030.0,0.71497231]
[1746829557474,0.78088002,103040.0,103030.0,0.99930578]
[1746829557671,0.74270272,103040.0,103030.0,0.99929336]
[1746829557978,0.54861312,103040.0,103030.0,0.99929423]
[1746829558178,0.70861312,103040.0,103030.0,0.99929423]
[1746829558577,0.70861312,103040.0,103030.0,0.98431231]
[1746829558878,0.585,103040.0,103030.0,0.99929423]
[1746829559068,0.586,103040.0,103030.0,0.99929423]
[1746829559267,0.586,103040.0,103030.0,0.98431231]
[1746829559468,0.586,103040.0,103030.0,0.63849398]
[1746829559674,0.586,103040.0,103030.0,1.36009371]
[1746829560678,0.586,103040.0,103030.0,1.36009059]
[1746829563077,0.66022204,103040.0,103030.0,1.43136789]
[1746829565980,0.66022204,103040.0,103030.0,1.19492789]
[1746829566181,0.66022204,103040.0,103030.0,1.4312404]
[1746829567589,0.66022204,103040.0,103030.0,1.1949204]
[1746829567778,0.66022204,103040.0,103030.0,1.4312404]
[1746829568081,0.66022204,103040.0,103030.0,1.41626961]
[1746829568287,0.66022204,103040.0,103030.0,1.4312387]
[1746829568786,0.66022204,103040.0,103030.0,1.1949187]
[1746829569085,0.66022204,103040.0,103030.0,1.4312387]
[1746829569581,0.66022204,103040.0,103030.0,1.1949187]
[1746829569786,0.66022204,103040.0,103030.0,1.4312387]
[1746829569986,0.66022204,103040.0,103030.0,1.43123767]
[1746829570181,0.66022204,103040.0,103030.0,0.70963767]
[1746829570388,0.66022204,103040.0,103030.0,1.43123767]
[1746829573698,0.66022204,103040.0,103030.0,1.19491767]
[1746829573895,0.66022204,103040.0,103030.0,1.43123767]
[1746829576194,0.66022204,103040.0,103030.0,1.19491767]
[1746829576391,0.66022204,103040.0,103030.0,1.43119767]
[1746829577692,0.66022204,103040.0,103030.0,1.43117782]
[1746829580000,0.23622204,103040.0,103030.0,1.78117782]
[1746829580197,0.23622204,103040.0,103030.0,1.95245512]
[1746829580403,0.23622204,103040.0,103030.0,2.04951112]
[1746829581096,0.07622204,103040.0,103030.0,2.04951112]
[1746829581503,0.07622204,103040.0,103030.0,1.95245512]
[1746829583005,0.002,103040.0,103030.0,1.95245512]
[1746829583701,0.00727,103050.0,103040.0,0.1940896]
[1746829583902,0.00727,103050.0,103040.0,2.39761241]
[1746829584205,0.00727,103050.0,103040.0,2.29761241]
[1746829584504,0.00727,103050.0,103040.0,2.3946668]
[1746829584708,0.01027,103050.0,103040.0,2.3946668]
[1746829586004,0.01227,103050.0,103040.0,2.3946668]
[1746829586899,0.01227,103050.0,103040.0,2.7554668]
[1746829588106,0.01227,103050.0,103040.0,2.75544383]
[1746829588404,0.01227,103050.0,103040.0,2.71544383]
[1746829589505,0.01227,103050.0,103040.0,2.57288923]
[1746829589806,0.01227,103050.0,103040.0,2.64416504]
[1746829590005,0.01227,103050.0,103040.0,2.71544234]
[1746829590192,0.17227,103050.0,103040.0,2.71544234]
[1746829590399,0.17227,103050.0,103040.0,2.71544166]
[1746829592005,0.17227,103050.0,103040.0,2.77544166]
[1746829592202,0.17227,103050.0,103040.0,2.05384166]
[1746829592407,0.165,103050.0,103040.0,2.7754388]
[1746829593309,0.165,103050.0,103040.0,2.77543774]
[1746829594505,0.165,103050.0,103040.0,2.76051859]
[1746829594716,0.165,103050.0,103040.0,2.80553645]
[1746829597613,0.17227,103050.0,103040.0,2.80553645]
[1746829598711,0.17227,103050.0,103040.0,2.80553787]
[1746829599116,0.01227,103050.0,103040.0,2.80553787]
[1746829599412,0.04387,103050.0,103040.0,2.80553787]
[1746829600213,0.20387,103050.0,103040.0,2.80553787]
[1746829600606,0.20387,103050.0,103040.0,2.80553796]
[1746829604114,0.20387,103050.0,103040.0,2.80553651]
[1746829607605,0.23517,103050.0,103040.0,2.80553651]
[1746829607805,0.23517,103050.0,103040.0,2.80554925]
[1746829608310,0.23517,103050.0,103040.0,2.79061859]
[1746829608517,0.23517,103050.0,103040.0,2.80554937]
[1746829609515,0.23517,103050.0,103040.0,2.80556458]
[1746829613120,0.23517,103050.0,103040.0,2.80557357]
[1746829614921,0.23517,103050.0,103040.0,2.80557913]
[1746829615121,0.23517,103050.0,103040.0,2.08397913]
[1746829615322,0.23517,103050.0,103040.0,2.80557913]
[1746829616920,0.23517,103050.0,103040.0,2.80557926]
[1746829620523,0.23517,103050.0,103040.0,2.95404648]
[1746829621823,0.23517,103050.0,103040.0,3.07260648]
[1746829623223,0.23517,103050.0,103040.0,3.07260464]
[1746829625226,0.23517,103050.0,103040.0,2.35100464]
[1746829625427,0.23517,103050.0,103040.0,3.07260464]
[1746829626827,0.23517,103050.0,103040.0,3.05764581]
[1746829627628,0.23517,103050.0,103040.0,3.07259942]
[1746829628030,0.23517,103050.0,103040.0,2.35099942]
[1746829628228,0.23517,103050.0,103040.0,2.9241322]
[1746829631124,0.23517,103050.0,103040.0,2.2025322]
[1746829631329,0.23517,103050.0,103040.0,2.9241322]
[1746829632925,0.23517,103050.0,103040.0,2.90917859]
[1746829633832,0.23517,103050.0,103040.0,2.92413801]
[1746829634131,0.23517,103050.0,103040.0,2.92413792]
[1746829635436,0.23517,103050.0,103040.0,3.07260514]
[1746829636634,0.23517,103050.0,103040.0,3.07260999]
[1746829640833,0.23517,103050.0,103040.0,2.35100999]
[1746829641035,0.23517,103050.0,103040.0,3.07260999]
[1746829641937,0.23517,103050.0,103040.0,3.07261909]
[1746829645541,0.23517,103050.0,103040.0,3.07262146]
[1746829647543,0.23517,103050.0,103040.0,3.07262126]
[1746829647934,0.23517,103050.0,103040.0,3.07262125]
[1746829651244,0.23517,103050.0,103040.0,2.92415403]
[1746829652243,0.23517,103050.0,103040.0,2.56335403]
[1746829652541,0.23517,103050.0,103040.0,2.92415403]
[1746829654849,0.23517,103050.0,103040.0,2.92414932]
[1746829658151,0.23517,103050.0,103040.0,3.07261654]
[1746829658346,0.23517,103050.0,103040.0,3.07261743]
[1746829660149,0.23517,103050.0,103040.0,3.07261789]
[1746829665346,0.23517,103050.0,103040.0,2.20255067]
[1746829665552,0.23517,103050.0,103040.0,2.92415067]
[1746829667555,0.23517,103050.0,103040.0,2.92414982]
[1746829671955,0.1333852,103050.0,103040.0,3.09542712]
[1746829672161,0.07422204,103060.0,103050.0,0.1940708]
[1746829672359,0.07422204,103060.0,103050.0,1.30349663]
[1746829672753,0.07422204,103060.0,103050.0,1.40053219]
[1746829672949,0.07422204,103060.0,103050.0,1.40052223]
[1746829673148,0.23422204,103060.0,103050.0,1.40052223]
[1746829673461,0.23822204,103060.0,103050.0,1.40052223]
[1746829674060,0.23722204,103060.0,103050.0,1.40052223]
[1746829674863,0.23522204,103060.0,103050.0,1.40051778]
[1746829676561,0.23522204,103060.0,103050.0,1.32923571]
[1746829678560,0.23522204,103060.0,103050.0,1.32923194]
[1746829679262,0.161,103060.0,103050.0,1.32923194]
[1746829679959,0.1936,103060.0,103050.0,1.32923194]
[1746829680350,0.1936,103060.0,103050.0,1.32923007]
[1746829681561,0.1936,103060.0,103050.0,1.32922981]
[1746829682466,0.1936,103060.0,103050.0,0.96842981]
[1746829682761,0.1936,103060.0,103050.0,1.69002981]
[1746829683161,0.161,103060.0,103050.0,1.69002981]
[1746829683564,0.161,103060.0,103050.0,1.76130711]
[1746829685065,0.161,103060.0,103050.0,1.76130242]
[1746829686764,0.161,103060.0,103050.0,1.76130125]
[1746829689658,0.1925,103060.0,103050.0,1.76130125]
[1746829694166,0.1925,103060.0,103050.0,1.74636096]
[1746829694373,0.1925,103060.0,103050.0,1.76130378]
[1746829696072,0.1925,103060.0,103050.0,1.76130617]
[1746829696872,0.1925,103060.0,103050.0,1.03970617]
[1746829697078,0.1925,103060.0,103050.0,1.76130617]
[1746829697974,0.1925,103060.0,103050.0,1.76130919]
[1746829702172,0.1925,103060.0,103050.0,1.03970919]
[1746829702370,0.1925,103060.0,103050.0,1.90977641]
[1746829705378,0.1925,103060.0,103050.0,1.90979497]
[1746829709082,0.1925,103060.0,103050.0,2.02767497]
[1746829709283,0.1925,103060.0,103050.0,2.02761597]
[1746829709577,0.161,103060.0,103050.0,2.02761597]
[1746829710285,0.001,103060.0,103050.0,2.02761597]
[1746829712888,0.001,103060.0,103050.0,2.02761272]
[1746829713185,0.161,103060.0,103050.0,2.02761272]
[1746829713885,0.161,103060.0,103050.0,3.18937272]
[1746829714186,0.001,103060.0,103050.0,3.18937272]
[1746829714689,0.001,103060.0,103050.0,3.18937172]
[1746829716085,0.161,103060.0,103050.0,3.18937172]
[1746829716789,0.161,103060.0,103050.0,3.18937071]
[1746829718580,0.161,103060.0,103050.0,3.18937039]
[1746829720299,0.161,103060.0,103050.0,3.18937022]
[1746829722199,0.161,103060.0,103050.0,3.18937387]
[1746829724200,0.001,103060.0,103050.0,3.18937387]
[1746829724391,0.00827,103060.0,103050.0,3.18937387]
[1746829725302,0.16827,103060.0,103050.0,3.18937387]
[1746829729600,0.16827,103060.0,103050.0,2.46777387]
[1746829729802,0.16827,103060.0,103050.0,3.18937387]
[1746829733305,0.16827,103060.0,103050.0,3.38690343]
[1746829737407,0.16827,103060.0,103050.0,3.38690483]
[1746829742210,0.16827,103060.0,103050.0,3.38690597]
[1746829742413,0.16827,103060.0,103050.0,3.18937641]
[1746829748110,0.16827,103060.0,103050.0,3.18924495]
[1746829750012,0.16827,103060.0,103050.0,3.18924482]
[1746829751313,0.23267,103060.0,103050.0,3.18924482]
[1746829755515,0.23267,103060.0,103050.0,3.18924671]
[1746829757217,0.23267,103060.0,103050.0,3.18924662]
[1746829759114,0.23267,103060.0,103050.0,3.189249]
[1746829760415,0.23267,103060.0,103050.0,2.467649]
[1746829760719,0.23267,103060.0,103050.0,3.189249]
[1746829762919,0.23267,103060.0,103050.0,3.18924704]
[1746829766725,0.23267,103060.0,103050.0,3.18924833]
[1746829775831,0.23267,103060.0,103050.0,3.38677789]
[1746829779931,0.23267,103060.0,103050.0,3.38677946]
[1746829783531,0.23267,103060.0,103050.0,3.37199774]
[1746829783738,0.23267,103060.0,103050.0,3.3867794]
[1746829786735,0.19977,103060.0,103050.0,3.3867794]
[1746829789142,0.19977,103060.0,103050.0,3.38677343]
[1746829792844,0.0312,103070.0,103060.0,0.194052]
[1746829793036,0.10842204,103080.0,103070.0,0.1940331]
[1746829793242,0.10842204,103080.0,103070.0,1.37416339]
[1746829793439,0.10842204,103080.0,103070.0,1.47119895]
[1746829793946,0.10842204,103080.0,103070.0,1.39992165]
[1746829794144,0.26842204,103080.0,103070.0,1.39992165]
[1746829795748,0.26842204,103080.0,103070.0,1.40292165]
[1746829796053,0.1942,103080.0,103070.0,1.40292165]
[1746829796349,0.194,103080.0,103070.0,1.57519895]
[1746829796643,0.164,103080.0,103070.0,1.57519785]
[1746829796845,0.164,103080.0,103070.0,1.57419785]
[1746829797047,0.164,103080.0,103070.0,1.57919785]
[1746829800142,0.164,103080.0,103070.0,1.57918404]
[1746829801548,0.164,103080.0,103070.0,1.57918333]
[1746829806956,0.164,103080.0,103070.0,1.57911417]
[1746829807856,0.164,103080.0,103070.0,1.50783687]
[1746829808058,0.1964,103080.0,103070.0,1.50783687]
[1746829808259,0.1964,103080.0,103070.0,1.33651957]
[1746829808449,0.1964,103080.0,103070.0,1.43651957]
[1746829808651,0.1964,103080.0,103070.0,1.50779687]
[1746829810067,0.1964,103080.0,103070.0,1.57907417]
[1746829810359,0.1964,103080.0,103070.0,2.74063417]
[1746829810659,0.1964,103080.0,103070.0,2.66935687]
[1746829810861,0.1964,103080.0,103070.0,2.66935641]
[1746829811056,0.1964,103080.0,103070.0,2.74063371]
[1746829812055,0.1964,103080.0,103070.0,2.64063371]
[1746829812254,0.1964,103080.0,103070.0,2.74063371]
[1746829813559,0.164,103080.0,103070.0,2.59807911]
[1746829813759,0.164,103080.0,103070.0,2.74063371]
[1746829815962,0.164,103080.0,103070.0,3.10143371]
[1746829816657,0.164,103080.0,103070.0,2.37983371]
[1746829816858,0.164,103080.0,103070.0,3.10143371]
[1746829820066,0.164,103080.0,103070.0,3.10144321]
[1746829821057,0.00727,103090.0,103080.0,0.1940143]
[1746829821362,0.00727,103090.0,103080.0,1.20794615]
[1746829821569,0.00727,103090.0,103080.0,1.13666885]
[1746829821868,0.00727,103090.0,103080.0,1.23368558]
[1746829822366,0.16727,103090.0,103080.0,1.23368558]
[1746829823267,0.16727,103090.0,103080.0,1.23668558]
[1746829823468,0.16727,103090.0,103080.0,1.2510938]
[1746829824073,0.16727,103090.0,103080.0,1.2520938]
[1746829826769,0.16727,103090.0,103080.0,1.6128938]
[1746829826973,0.16727,103090.0,103080.0,1.76136102]
[1746829828367,0.16,103090.0,103080.0,1.76136102]
[1746829829281,0.16,103090.0,103080.0,1.76135658]
[1746829830278,0.16,103090.0,103080.0,1.61288936]
[1746829831466,0.1,103100.0,103090.0,0.1939955]
[1746829831679,0.10942204,103110.0,103100.0,0.1867067]
[1746829831877,0.14152204,103110.0,103100.0,1.13005681]
[1746829832275,0.30152204,103110.0,103100.0,1.22704531]
[1746829832471,0.33432204,103110.0,103100.0,1.22704531]
[1746829832666,0.33432204,103110.0,103100.0,1.08449071]
[1746829832870,0.33432204,103110.0,103100.0,1.15576801]
[1746829833768,0.33732204,103110.0,103100.0,1.15576801]
[1746829834182,0.33732204,103110.0,103100.0,1.22704531]
[1746829834582,0.2631,103110.0,103100.0,1.22704531]
[1746829834879,0.2631,103110.0,103100.0,1.22703476]
[1746829837788,0.2631,103110.0,103100.0,1.58783476]
[1746829840387,0.2631,103110.0,103100.0,1.58783096]
[1746829842692,0.2631,103110.0,103100.0,1.44527636]
[1746829842893,0.2631,103110.0,103100.0,1.58783096]
[1746829844699,0.2303,103110.0,103100.0,1.58783096]
[1746829845098,0.2303,103110.0,103100.0,1.44527636]
[1746829845300,0.2303,103110.0,103100.0,1.58783096]
[1746829845696,0.2303,103110.0,103100.0,2.74915096]
[1746829845892,0.2303,103110.0,103100.0,2.74915501]
[1746829847703,0.2303,103110.0,103100.0,2.749159]
[1746829849601,0.2303,103110.0,103100.0,2.74916499]
[1746829851511,0.2303,103110.0,103100.0,2.74917118]
[1746829855301,0.2303,103110.0,103100.0,2.74917366]
[1746829858204,0.5103,103110.0,103100.0,2.59317636]
[1746829858406,0.5103,103110.0,103100.0,2.58317636]
[1746829858407,0.5428,103110.0,103100.0,2.58317636]
[1746829858905,0.5428,103110.0,103100.0,2.92317636]
[1746829859207,0.5428,103110.0,103100.0,2.99445366]
[1746829860601,0.5428,103110.0,103100.0,2.85189906]
[1746829860803,0.5428,103110.0,103100.0,2.92317636]
[1746829862008,0.5428,103110.0,103100.0,2.9084725]
[1746829862212,0.5428,103110.0,103100.0,2.92318848]
[1746829862612,0.5103,103110.0,103100.0,2.99446578]
[1746829862810,0.5103,103110.0,103100.0,2.84191118]
[1746829863008,0.5103,103110.0,103100.0,2.89318848]
[1746829863702,0.58452204,103110.0,103100.0,2.89318848]
[1746829864016,0.58452204,103110.0,103100.0,2.96446578]
[1746829864511,0.58452204,103110.0,103100.0,2.89318848]
[1746829865716,0.58452204,103110.0,103100.0,2.89318629]
[1746829867319,0.58452204,103110.0,103100.0,2.17158629]
[1746829867520,0.58452204,103110.0,103100.0,2.96446359]
[1746829869410,0.55242204,103110.0,103100.0,2.96446271]
[1746829869614,0.27242204,103110.0,103100.0,2.96446271]
[1746829869814,0.24122204,103110.0,103100.0,2.96446271]
[1746829870825,0.27322204,103110.0,103100.0,2.96446271]
[1746829871323,0.27322204,103110.0,103100.0,2.96446154]
[1746829872524,0.27322204,103110.0,103100.0,2.24286154]
[1746829872723,0.27322204,103110.0,103100.0,2.96446154]
[1746829874323,0.24122204,103110.0,103100.0,2.96446154]
[1746829874525,0.167,103110.0,103100.0,2.96446154]
[1746829877019,0.167,103110.0,103100.0,2.96446189]
[1746829882628,0.167,103110.0,103100.0,2.96447015]
[1746829884427,0.167,103110.0,103100.0,2.96447283]
[1746829884627,0.167,103110.0,103100.0,2.89319553]
[1746829884628,0.24122204,103110.0,103100.0,2.89319553]
[1746829885029,0.27352204,103110.0,103100.0,2.89319553]
[1746829886426,0.27352204,103110.0,103100.0,2.89319628]
[1746829888530,0.24122204,103110.0,103100.0,2.89319628]
[1746829890231,0.24849204,103110.0,103100.0,2.89319628]
[1746829901533,0.24849204,103110.0,103100.0,2.89321296]
[1746829902037,0.24849204,103110.0,103100.0,2.65793296]
[1746829902230,0.24849204,103110.0,103100.0,2.89297296]
[1746829905737,0.31976934,103110.0,103100.0,2.58665566]
[1746829905931,0.88965734,103110.0,103100.0,2.39405566]
[1746829906135,0.81838004,103110.0,103100.0,2.39405566]
[1746829906637,0.72139204,103110.0,103100.0,2.39405566]
[1746829914550,0.72139204,103110.0,103100.0,2.39403168]
[1746829916649,0.72139204,103110.0,103100.0,2.39403457]
[1746829918048,0.72139204,103110.0,103100.0,1.67243457]
[1746829918251,0.72139204,103110.0,103100.0,1.23271457]
[1746829918445,0.72139204,103110.0,103100.0,1.23271629]
[1746829920247,0.72139204,103110.0,103100.0,1.23272052]
[1746829926052,0.69099204,103110.0,103100.0,1.30399782]
[1746829926549,0.69099204,103110.0,103100.0,1.23272052]
[1746829927344,0.69099204,103110.0,103100.0,1.2179952]
[1746829927544,0.69099204,103110.0,103100.0,1.2327238]
[1746829930947,0.69099204,103110.0,103100.0,1.23266652]
[1746829932253,0.32099204,103110.0,103100.0,1.23266652]
[1746829932445,0.32099204,103110.0,103100.0,1.23266517]
[1746829936552,0.32099204,103110.0,103100.0,1.23266639]
[1746829939152,0.29029204,103110.0,103100.0,1.30394369]